fUSD/lending_fUSD_20260601
["ID","MTS","AMOUNT","RATE_DAILY","PERIOD"]
[423572336,1780243300000,3752.0,0.0003,120]
[423572344,1780243477000,506.23014563,0.00030136,120]
[423572345,1780243507000,500.0,0.0003013,120]
[423572350,1780243640000,463.06,0.00030082,120]
[423572354,1780243741000,1000.0,0.00030135,120]
[423572367,1780243831000,-200.0,0.00012162,2]
[423572366,1780243831000,-1829.66542651,0.00012159,2]
[423572368,1780243831000,-2000.0,0.00012184,2]
[423572365,1780243831000,-303.72702952,0.00012159,2]
[423572364,1780243831000,-579.08754397,0.00012159,2]
[423572361,1780243831000,-250.0,0.00012102,2]
[423572362,1780243831000,-331.52417762,0.00012106,2]
[423572363,1780243831000,-500.87582238,0.00012106,2]
[423572360,1780243831000,-500.0,0.00012099,2]
[423572408,1780243832000,-184.97969543,0.00012383,2]
[423572403,1780243832000,-203.9390108,0.00012383,2]
[423572399,1780243832000,-500.0,0.00012383,2]
[423572397,1780243832000,-500.0,0.00012383,2]
[423572401,1780243832000,-500.0,0.00012383,2]
[423572394,1780243832000,-500.0,0.00012383,2]
[423572410,1780243832000,-500.0,0.00012383,2]
[423572406,1780243832000,-315.02030457,0.00012383,2]
[423572420,1780243832000,-500.0,0.00012383,2]
[423572416,1780243832000,-500.0,0.00012383,2]
[423572412,1780243832000,-500.0,0.00012383,2]
[423572414,1780243832000,-500.0,0.00012383,2]
[423572418,1780243832000,-500.0,0.00012383,2]
[423572391,1780243832000,-262.54725447,0.00012383,2]
[423572424,1780243832000,-500.0,0.00012383,2]
[423572426,1780243832000,-500.0,0.00012383,2]
[423572435,1780243832000,-500.0,0.00012383,2]
[423572428,1780243832000,-500.0,0.00012383,2]
[423572433,1780243832000,-500.0,0.00012383,2]
[423572431,1780243832000,-500.0,0.00012383,2]
[423572422,1780243832000,-500.0,0.00012383,2]
[423572392,1780243832000,-237.45274553,0.00012383,2]
[423572386,1780243832000,-318.06383198,0.00012383,2]
[423572393,1780243832000,-500.0,0.00012383,2]
[423572369,1780243832000,-1200.0,0.00012187,2]
[423572372,1780243832000,-1369.39,0.00012234,2]
[423572373,1780243832000,-179.01,0.0001226,2]
[423572371,1780243832000,-209.17060647,0.00012223,2]
[423572374,1780243832000,-215.61611719,0.00012286,2]
[423572370,1780243832000,-2000.0,0.00012188,2]
[423572376,1780243832000,-171.81,0.00012376,2]
[423572375,1780243832000,-463.06,0.00012329,2]
[423572377,1780243832000,-150.0,0.00012382,2]
[423572378,1780243832000,-500.0,0.00012383,2]
[423572379,1780243832000,-500.0,0.00012383,2]
[423572380,1780243832000,-195.36054647,0.00012383,2]
[423572382,1780243832000,-443.01979211,0.00012383,2]
[423572381,1780243832000,-117.14675477,0.00012383,2]
[423572383,1780243832000,-56.98020789,0.00012383,2]
[423572384,1780243832000,-500.0,0.00012383,2]
[423572385,1780243832000,-137.69177747,0.00012383,2]
[423572388,1780243832000,-500.0,0.00012383,2]
[423572387,1780243832000,-44.24439055,0.00012383,2]
[423572389,1780243832000,-292.14303239,0.00012383,2]
[423572390,1780243832000,-207.85696761,0.00012383,2]
[423572395,1780243832000,-500.0,0.00012383,2]
[423572439,1780243832000,-500.0,0.00012383,2]
[423572445,1780243832000,-500.0,0.00012383,2]
[423572497,1780243832000,-500.0,0.00012383,2]
[423572443,1780243832000,-500.0,0.00012383,2]
[423572495,1780243832000,-500.0,0.00012383,2]
[423572493,1780243832000,-500.0,0.00012383,2]
[423572506,1780243832000,-500.0,0.00012383,2]
[423572504,1780243832000,-500.0,0.00012383,2]
[423572510,1780243832000,-500.0,0.00012383,2]
[423572508,1780243832000,-500.0,0.00012383,2]
[423572512,1780243832000,-500.0,0.00012383,2]
[423572525,1780243832000,-500.0,0.00012383,2]
[423572502,1780243832000,-500.0,0.00012383,2]
[423572527,1780243832000,-745.86154597,0.00012383,2]
[423572518,1780243832000,-500.0,0.00012383,2]
[423572521,1780243832000,-500.0,0.00012383,2]
[423572523,1780243832000,-500.0,0.00012383,2]
[423572517,1780243832000,-500.0,0.00012383,2]
[423572529,1780243832000,-388.13909957,0.00012383,2]
[423572531,1780243832000,-745.86154597,0.00012383,2]
[423572536,1780243832000,-7301.31895632,0.00012385,2]
[423572533,1780243832000,-1344.17660253,0.00012385,2]
[423572538,1780243832000,-2287.51677326,0.00012385,2]
[423572514,1780243832000,-500.0,0.00012383,2]
[423572491,1780243832000,-500.0,0.00012383,2]
[423572447,1780243832000,-500.0,0.00012383,2]
[423572500,1780243832000,-313.01713788,0.00012383,2]
[423572437,1780243832000,-500.0,0.00012383,2]
[423572441,1780243832000,-500.0,0.00012383,2]
[423572460,1780243832000,-500.0,0.00012383,2]
[423572449,1780243832000,-607.56205654,0.00012383,2]
[423572454,1780243832000,-500.0,0.00012383,2]
[423572452,1780243832000,-500.0,0.00012383,2]
[423572457,1780243832000,-500.0,0.00012383,2]
[423572489,1780243832000,-500.0,0.00012383,2]
[423572462,1780243832000,-500.0,0.00012383,2]
[423572474,1780243832000,-500.0,0.00012383,2]
[423572455,1780243832000,-500.0,0.00012383,2]
[423572466,1780243832000,-500.0,0.00012383,2]
[423572484,1780243832000,-500.0,0.00012383,2]
[423572472,1780243832000,-500.0,0.00012383,2]
[423572482,1780243832000,-500.0,0.00012383,2]
[423572480,1780243832000,-500.0,0.00012383,2]
[423572486,1780243832000,-500.0,0.00012383,2]
[423572476,1780243832000,-500.0,0.00012383,2]
[423572464,1780243832000,-500.0,0.00012383,2]
[423572470,1780243832000,-500.0,0.00012383,2]
[423572468,1780243832000,-500.0,0.00012383,2]
[423572478,1780243832000,-500.0,0.00012383,2]
[423572616,1780243838000,-312.50730124,0.00012385,2]
[423572634,1780243840000,-650.4944148,0.00012385,2]
[423572713,1780243843000,-3222.58778554,0.00012385,2]
[423572843,1780243846000,-38617.30100095,0.00012385,2]
[423572976,1780243913000,500.0,0.0003013,120]
[423572983,1780244066000,1101.0,0.000295,120]
[423572985,1780244310000,500.0,0.0003013,120]
[423572996,1780244564000,308.7,0.00030082,120]
[423572997,1780244707000,500.0,0.0003013,120]
[423572998,1780244765000,-364.21877193,0.00010753,2]
[423573001,1780244765000,-420.16108642,0.00011482,2]
[423572999,1780244765000,-173.39,0.00010998,2]
[423573000,1780244765000,-1467.87,0.0001141,2]
[423573003,1780244765000,-169.26,0.00011553,2]
[423573002,1780244765000,-3212.12,0.00011506,2]
[423573005,1780244765000,-300.0,0.00011793,2]
[423573006,1780244765000,-3212.12,0.00011794,2]
[423573007,1780244765000,-250.0,0.00011829,2]
[423573009,1780244765000,-3212.12,0.00012082,2]
[423573008,1780244765000,-2000.0,0.00012063,2]
[423573011,1780244765000,-2163.48,0.0001209,2]
[423573010,1780244765000,-186.3,0.00012086,2]
[423573004,1780244765000,-2775.74,0.00011554,2]
[423573014,1780244765000,-1200.0,0.00012158,2]
[423573012,1780244765000,-160.0,0.0001211,2]
[423573024,1780244765000,-500.0,0.00012282,2]
[423573021,1780244765000,-500.0,0.00012282,2]
[423573023,1780244765000,-500.0,0.00012282,2]
[423573020,1780244765000,-500.0,0.00012282,2]
[423573018,1780244765000,-500.0,0.00012282,2]
[423573022,1780244765000,-500.0,0.00012282,2]
[423573017,1780244765000,-500.0,0.00012282,2]
[423573019,1780244765000,-500.0,0.00012282,2]
[423573015,1780244765000,-2247.718,0.00012282,2]
[423573016,1780244765000,-500.0,0.00012282,2]
[423573013,1780244765000,-209.17060647,0.00012125,2]
[423573025,1780244765000,-500.0,0.00012282,2]
[423573034,1780244766000,-500.0,0.00012282,2]
[423573039,1780244766000,-500.0,0.00012282,2]
[423573037,1780244766000,-500.0,0.00012282,2]
[423573038,1780244766000,-500.0,0.00012282,2]
[423573036,1780244766000,-500.0,0.00012282,2]
[423573035,1780244766000,-500.0,0.00012282,2]
[423573040,1780244766000,-500.0,0.00012282,2]
[423573028,1780244766000,-500.0,0.00012282,2]
[423573032,1780244766000,-500.0,0.00012282,2]
[423573030,1780244766000,-500.0,0.00012282,2]
[423573029,1780244766000,-500.0,0.00012282,2]
[423573027,1780244766000,-500.0,0.00012282,2]
[423573026,1780244766000,-500.0,0.00012282,2]
[423573042,1780244766000,-500.0,0.00012282,2]
[423573031,1780244766000,-500.0,0.00012282,2]
[423573041,1780244766000,-500.0,0.00012282,2]
[423573033,1780244766000,-500.0,0.00012282,2]
[423573044,1780244766000,-500.0,0.00012282,2]
[423573043,1780244766000,-500.0,0.00012282,2]
[423573059,1780244766000,-500.0,0.00012282,2]
[423573057,1780244766000,-500.0,0.00012282,2]
[423573058,1780244766000,-500.0,0.00012282,2]
[423573055,1780244766000,-500.0,0.00012282,2]
[423573053,1780244766000,-500.0,0.00012282,2]
[423573054,1780244766000,-500.0,0.00012282,2]
[423573056,1780244766000,-500.0,0.00012282,2]
[423573052,1780244766000,-500.0,0.00012282,2]
[423573048,1780244766000,-500.0,0.00012282,2]
[423573050,1780244766000,-500.0,0.00012282,2]
[423573049,1780244766000,-500.0,0.00012282,2]
[423573047,1780244766000,-500.0,0.00012282,2]
[423573045,1780244766000,-500.0,0.00012282,2]
[423573046,1780244766000,-500.0,0.00012282,2]
[423573051,1780244766000,-500.0,0.00012282,2]
[423573069,1780244767000,-500.0,0.00012282,2]
[423573074,1780244767000,-500.0,0.00012282,2]
[423573073,1780244767000,-500.0,0.00012282,2]
[423573072,1780244767000,-500.0,0.00012282,2]
[423573071,1780244767000,-500.0,0.00012282,2]
[423573070,1780244767000,-500.0,0.00012282,2]
[423573068,1780244767000,-500.0,0.00012282,2]
[423573060,1780244767000,-500.0,0.00012282,2]
[423573067,1780244767000,-500.0,0.00012282,2]
[423573065,1780244767000,-500.0,0.00012282,2]
[423573064,1780244767000,-500.0,0.00012282,2]
[423573063,1780244767000,-500.0,0.00012282,2]
[423573062,1780244767000,-500.0,0.00012282,2]
[423573061,1780244767000,-500.0,0.00012282,2]
[423573066,1780244767000,-500.0,0.00012282,2]
[423573075,1780244767000,-614.44627246,0.00012282,2]
[423573077,1780244767000,-500.0,0.00012282,2]
[423573078,1780244767000,-500.0,0.00012282,2]
[423573076,1780244767000,-500.0,0.00012282,2]
[423573091,1780244767000,-3212.12,0.00012369,2]
[423573090,1780244767000,-503.91201384,0.00012369,2]
[423573089,1780244767000,-415.32163313,0.00012369,2]
[423573087,1780244767000,-187.08915816,0.00012369,2]
[423573088,1780244767000,-500.0,0.00012369,2]
[423573086,1780244767000,-500.0,0.00012369,2]
[423573092,1780244767000,-5700.30257354,0.0001237,2]
[423573083,1780244767000,-4809.03162488,0.00012283,2]
[423573084,1780244767000,-308.7,0.00012329,2]
[423573079,1780244767000,-500.0,0.00012282,2]
[423573081,1780244767000,-499.99999999,0.00012282,2]
[423573082,1780244767000,-26581.69592138,0.00012283,2]
[423573080,1780244767000,-361.44462725,0.00012282,2]
[423573085,1780244767000,-582.26771055,0.00012369,2]
[423573093,1780244768000,273.705412,7.945e-05,2]
[423573098,1780244878000,45000.0,0.0003013,120]
[423573099,1780244941000,1000.0,0.00030134,120]
[423573100,1780244946000,3000.0,0.00030137,120]
[423573105,1780244963000,2048.0,0.00030137,120]
[423573110,1780245031000,-209.17060647,0.00011602,2]
[423573108,1780245031000,-896.20630771,0.0001157,2]
[423573111,1780245031000,-611.76443655,0.0001164,2]
[423573107,1780245031000,-1053.07650681,0.0001157,2]
[423573109,1780245031000,-1229.78214246,0.00011586,2]
[423573116,1780245032000,-1400.52537883,0.00012282,2]
[423573113,1780245032000,-559.60609514,0.0001164,2]
[423573114,1780245032000,-828.62946831,0.0001164,2]
[423573117,1780245032000,-328.0,0.00012296,2]
[423573121,1780245032000,-150.0,0.00012296,2]
[423573122,1780245032000,-12585.19798611,0.00012297,2]
[423573119,1780245032000,-1200.0,0.00012296,2]
[423573118,1780245032000,-300.0,0.00012296,2]
[423573120,1780245032000,-300.0,0.00012296,2]
[423573115,1780245032000,-1081.74,0.00011966,2]
[423573152,1780245038000,-500.0,0.00012369,2]
[423573147,1780245038000,-500.0,0.00012369,2]
[423573156,1780245038000,-500.0,0.00012369,2]
[423573149,1780245038000,-500.0,0.00012369,2]
[423573154,1780245038000,-167.16415378,0.00012369,2]
[423573137,1780245038000,-5298.01471787,0.00012297,2]
[423573135,1780245038000,-14465.37100176,0.00012297,2]
[423573151,1780245038000,-500.0,0.00012369,2]
[423573139,1780245038000,-9558.0486618,0.00012299,2]
[423573145,1780245038000,-500.0,0.00012369,2]
[423573143,1780245038000,-500.0,0.00012369,2]
[423573158,1780245038000,-420.57554425,0.00012369,2]
[423573160,1780245038000,-178.6849672,0.00012369,2]
[423573162,1780245038000,-500.0,0.00012369,2]
[423573164,1780245038000,-512.00111395,0.00012369,2]
[423573169,1780245038000,-574988.76986386,0.0001237,2]
[423573166,1780245038000,-224.72280488,0.00012369,2]
[423573141,1780245038000,-151.0,0.00012367,2]
[423573257,1780245039000,-151.0,0.00013443,2]
[423573256,1780245039000,-151.0,0.00013443,2]
[423573246,1780245039000,-171.81,0.00013405,2]
[423573247,1780245039000,-432.905698,0.00013443,2]
[423573254,1780245039000,-432.905698,0.00013443,2]
[423573240,1780245039000,-500.0,0.00013356,2]
[423573250,1780245039000,-432.905698,0.00013443,2]
[423573243,1780245039000,-2319.0,0.000134,2]
[423573242,1780245039000,-255.0,0.0001339,2]
[423573238,1780245039000,-1100.0,0.00013356,2]
[423573234,1780245039000,-171.81,0.00013268,2]
[423573259,1780245039000,-600.0,0.00013443,2]
[423573251,1780245039000,-432.905698,0.00013443,2]
[423573261,1780245039000,-130140.2008,0.00013443,2]
[423573273,1780245039000,-150.0,0.00013488,2]
[423573267,1780245039000,-171.81,0.00013473,2]
[423573277,1780245039000,-269.1557045,0.00013488,2]
[423573279,1780245039000,-150.0,0.00013488,2]
[423573281,1780245039000,-480.0,0.00013526,2]
[423573282,1780245039000,-2206.35423903,0.00013533,2]
[423573271,1780245039000,-150.0,0.00013488,2]
[423573285,1780245039000,-150.0,0.00013542,2]
[423573269,1780245039000,-150.0,0.00013488,2]
[423573284,1780245039000,-171.81,0.00013542,2]
[423573236,1780245039000,-171.81,0.00013336,2]
[423573287,1780245039000,-1707.0,0.00013542,5]
[423573275,1780245039000,-150.0,0.00013488,2]
[423573289,1780245039000,-1300999.4668,0.00013543,2]
[423573291,1780245039000,-155.0,0.00013543,2]
[423573265,1780245039000,-27050.56898778,0.00013454,2]
[423573220,1780245039000,-550.55753751,0.00013046,2]
[423573210,1780245039000,-27050.56898778,0.00012875,2]
[423573222,1780245039000,-171.81,0.00013062,2]
[423573178,1780245039000,-171.81,0.00012513,2]
[423573176,1780245039000,-171.81,0.00012445,2]
[423573171,1780245039000,-350.0,0.00012384,3]
[423573172,1780245039000,-82935.5265067,0.00012397,2]
[423573180,1780245039000,-163.42,0.00012524,2]
[423573174,1780245039000,-220.0,0.00012404,2]
[423573185,1780245039000,-27050.56898778,0.00012586,2]
[423573182,1780245039000,-171.81,0.00012582,2]
[423573186,1780245039000,-152.0,0.00012634,7]
[423573191,1780245039000,-171.81,0.0001265,2]
[423573208,1780245039000,-150.0,0.00012865,2]
[423573193,1780245039000,-152.0,0.00012653,7]
[423573200,1780245039000,-6852.15,0.00012757,2]
[423573202,1780245039000,-5000.0,0.00012765,2]
[423573230,1780245039000,-27050.56898778,0.00013165,2]
[423573195,1780245039000,-152.0,0.00012669,7]
[423573204,1780245039000,-171.81,0.00012788,2]
[423573194,1780245039000,-3212.12,0.00012657,2]
[423573196,1780245039000,-171.81,0.00012719,2]
[423573198,1780245039000,-250.0,0.00012727,2]
[423573206,1780245039000,-171.81,0.00012856,2]
[423573293,1780245039000,-250.0,0.00013543,2]
[423573214,1780245039000,-171.81,0.00012925,2]
[423573212,1780245039000,-400.0,0.000129,4]
[423573224,1780245039000,-5298.01471782,0.00013074,2]
[423573226,1780245039000,-2000.0,0.00013095,2]
[423573228,1780245039000,-171.81,0.0001313,2]
[423573216,1780245039000,-467.09091052,0.0001299,2]
[423573218,1780245039000,-171.81,0.00012993,2]
[423573232,1780245039000,-171.81,0.00013199,2]
[423573188,1780245039000,-215.61611719,0.00012647,2]
[423573295,1780245039000,-486.29835859,0.00013543,2]
[423573263,1780245039000,-1748.0,0.00013446,5]
[423573299,1780245039000,-151.0,0.00013543,2]
[423573391,1780245039000,-500.0,0.00013698,2]
[423573387,1780245039000,-298.316198,0.00013698,2]
[423573375,1780245039000,-500.0,0.00013698,2]
[423573393,1780245039000,-500.0,0.00013698,2]
[423573383,1780245039000,-500.0,0.00013698,2]
[423573385,1780245039000,-221.64368182,0.00013698,2]
[423573378,1780245039000,-500.0,0.00013698,2]
[423573389,1780245039000,-500.0,0.00013698,2]
[423573372,1780245039000,-500.0,0.00013698,2]
[423573373,1780245039000,-500.0,0.00013698,2]
[423573370,1780245039000,-500.0,0.00013698,2]
[423573381,1780245039000,-500.0,0.00013698,2]
[423573367,1780245039000,-500.0,0.00013698,2]
[423573379,1780245039000,-500.0,0.00013698,2]
[423573366,1780245039000,-500.0,0.00013698,2]
[423573407,1780245039000,-500.0,0.00013698,2]
[423573411,1780245039000,-500.0,0.00013698,2]
[423573413,1780245039000,-500.0,0.00013698,2]
[423573397,1780245039000,-500.0,0.00013698,2]
[423573395,1780245039000,-500.0,0.00013698,2]
[423573399,1780245039000,-500.0,0.00013698,2]
[423573403,1780245039000,-500.0,0.00013698,2]
[423573401,1780245039000,-500.0,0.00013698,2]
[423573405,1780245039000,-500.0,0.00013698,2]
[423573415,1780245039000,-500.0,0.00013698,2]
[423573420,1780245039000,-500.0,0.00013698,2]
[423573418,1780245039000,-500.0,0.00013698,2]
[423573422,1780245039000,-500.0,0.00013698,2]
[423573297,1780245039000,-151.0,0.00013543,2]
[423573426,1780245039000,-1034.52,0.00013698,2]
[423573409,1780245039000,-500.0,0.00013698,2]
[423573363,1780245039000,-500.0,0.00013698,2]
[423573424,1780245039000,-500.0,0.00013698,2]
[423573362,1780245039000,-263.08171548,0.00013698,2]
[423573360,1780245039000,-500.0,0.00013698,2]
[423573311,1780245039000,-151.0,0.00013543,2]
[423573305,1780245039000,-432.905698,0.00013543,2]
[423573313,1780245039000,-832.4,0.00013619,2]
[423573312,1780245039000,-171.81,0.0001361,2]
[423573303,1780245039000,-432.905698,0.00013543,2]
[423573307,1780245039000,-432.905698,0.00013543,2]
[423573315,1780245039000,-1648.0,0.00013642,5]
[423573309,1780245039000,-151.0,0.00013543,2]
[423573317,1780245039000,-171.81,0.00013679,2]
[423573318,1780245039000,-10000.0,0.00013687,2]
[423573320,1780245039000,-6184.3345024,0.00013698,2]
[423573322,1780245039000,-500.0,0.00013698,2]
[423573324,1780245039000,-500.0,0.00013698,2]
[423573326,1780245039000,-500.0,0.00013698,2]
[423573301,1780245039000,-432.905698,0.00013543,2]
[423573337,1780245039000,-500.0,0.00013698,2]
[423573336,1780245039000,-500.0,0.00013698,2]
[423573354,1780245039000,-500.0,0.00013698,2]
[423573356,1780245039000,-500.0,0.00013698,2]
[423573358,1780245039000,-500.0,0.00013698,2]
[423573349,1780245039000,-500.0,0.00013698,2]
[423573348,1780245039000,-500.0,0.00013698,2]
[423573344,1780245039000,-500.0,0.00013698,2]
[423573352,1780245039000,-500.0,0.00013698,2]
[423573341,1780245039000,-500.0,0.00013698,2]
[423573332,1780245039000,-500.0,0.00013698,2]
[423573330,1780245039000,-500.0,0.00013698,2]
[423573339,1780245039000,-500.0,0.00013698,2]
[423573334,1780245039000,-500.0,0.00013698,2]
[423573345,1780245039000,-500.0,0.00013698,2]
[423573328,1780245039000,-500.0,0.00013698,2]
[423573521,1780245040000,-780.74,0.00013698,2]
[423573526,1780245040000,-572.23,0.00013698,2]
[423573519,1780245040000,-780.74,0.00013698,2]
[423573524,1780245040000,-780.74,0.00013698,2]
[423573512,1780245040000,-780.74,0.00013698,2]
[423573510,1780245040000,-780.74,0.00013698,2]
[423573505,1780245040000,-780.74,0.00013698,2]
[423573507,1780245040000,-780.74,0.00013698,2]
[423573498,1780245040000,-500.0,0.00013698,2]
[423573502,1780245040000,-500.0,0.00013698,2]
[423573522,1780245040000,-780.74,0.00013698,2]
[423573508,1780245040000,-780.74,0.00013698,2]
[423573495,1780245040000,-500.0,0.00013698,2]
[423573542,1780245040000,-572.23,0.00013698,2]
[423573517,1780245040000,-780.74,0.00013698,2]
[423573504,1780245040000,-500.0,0.00013698,2]
[423573516,1780245040000,-780.74,0.00013698,2]
[423573538,1780245040000,-572.23,0.00013698,2]
[423573539,1780245040000,-572.23,0.00013698,2]
[423573543,1780245040000,-572.23,0.00013698,2]
[423573545,1780245040000,-500.0,0.00013698,2]
[423573536,1780245040000,-572.23,0.00013698,2]
[423573534,1780245040000,-572.23,0.00013698,2]
[423573547,1780245040000,-365.01560358,0.00013698,2]
[423573549,1780245040000,-200.0,0.00013699,2]
[423573551,1780245040000,-239.79164,0.00013699,2]
[423573532,1780245040000,-572.23,0.00013698,2]
[423573500,1780245040000,-500.0,0.00013698,2]
[423573514,1780245040000,-780.74,0.00013698,2]
[423573493,1780245040000,-500.0,0.00013698,2]
[423573459,1780245040000,-556.63202223,0.00013698,2]
[423573477,1780245040000,-500.0,0.00013698,2]
[423573553,1780245040000,-166.66,0.00013699,2]
[423573430,1780245040000,-1034.52,0.00013698,2]
[423573432,1780245040000,-1034.52,0.00013698,2]
[423573434,1780245040000,-1034.52,0.00013698,2]
[423573436,1780245040000,-1034.52,0.00013698,2]
[423573428,1780245040000,-1034.52,0.00013698,2]
[423573438,1780245040000,-1034.52,0.00013698,2]
[423573440,1780245040000,-1034.52,0.00013698,2]
[423573444,1780245040000,-500.0,0.00013698,2]
[423573442,1780245040000,-1034.52,0.00013698,2]
[423573446,1780245040000,-500.0,0.00013698,2]
[423573449,1780245040000,-500.0,0.00013698,2]
[423573451,1780245040000,-500.0,0.00013698,2]
[423573452,1780245040000,-500.0,0.00013698,2]
[423573469,1780245040000,-500.0,0.00013698,2]
[423573457,1780245040000,-500.0,0.00013698,2]
[423573461,1780245040000,-500.0,0.00013698,2]
[423573463,1780245040000,-500.0,0.00013698,2]
[423573454,1780245040000,-500.0,0.00013698,2]
[423573464,1780245040000,-500.0,0.00013698,2]
[423573466,1780245040000,-500.0,0.00013698,2]
[423573471,1780245040000,-500.0,0.00013698,2]
[423573473,1780245040000,-500.0,0.00013698,2]
[423573487,1780245040000,-500.0,0.00013698,2]
[423573483,1780245040000,-245.62717302,0.00013698,2]
[423573489,1780245040000,-500.0,0.00013698,2]
[423573485,1780245040000,-500.0,0.00013698,2]
[423573481,1780245040000,-508.41629767,0.00013698,2]
[423573475,1780245040000,-500.0,0.00013698,2]
[423573479,1780245040000,-500.0,0.00013698,2]
[423573568,1780245040000,-6067.0,0.00013729,2]
[423573528,1780245040000,-572.23,0.00013698,2]
[423573570,1780245040000,-432.905698,0.00013729,2]
[423573628,1780245040000,-292.895239,0.00014035,2]
[423573624,1780245040000,-250.0,0.00014,2]
[423573626,1780245040000,-27050.56898778,0.00014032,2]
[423573630,1780245040000,-2319.0,0.0001404,2]
[423573632,1780245040000,-500.0,0.00014055,2]
[423573634,1780245040000,-186.3,0.00014101,2]
[423573636,1780245040000,-166.66,0.0001411,2]
[423573640,1780245040000,-780.74,0.00014214,2]
[423573650,1780245040000,-27050.56898778,0.00014322,2]
[423573638,1780245040000,-500.0,0.00014214,2]
[423573642,1780245040000,-166.66,0.00014247,2]
[423573652,1780245040000,-166.66,0.00014384,2]
[423573646,1780245040000,-236.67,0.00014253,2]
[423573648,1780245040000,-605.99032272,0.00014287,2]
[423573644,1780245040000,-6732.367104,0.0001425,2]
[423573654,1780245040000,-200.0,0.00014384,2]
[423573656,1780245040000,-500.0,0.00014447,2]
[423573658,1780245040000,-150.0,0.00014487,2]
[423573660,1780245040000,-2000.0,0.0001455,2]
[423573668,1780245040000,-572.23,0.00014575,2]
[423573664,1780245040000,-1034.52,0.00014575,2]
[423573670,1780245040000,-151.0,0.00014589,2]
[423573662,1780245040000,-500.0,0.00014575,2]
[423573675,1780245040000,-151.0,0.00014589,2]
[423573677,1780245040000,-151.0,0.00014593,2]
[423573666,1780245040000,-500.0,0.00014575,2]
[423573673,1780245040000,-151.0,0.00014589,2]
[423573679,1780245040000,-6961.81244967,0.00014595,2]
[423573680,1780245040000,-1900.0,0.000146,5]
[423573622,1780245040000,-150.0,0.00013991,2]
[423573616,1780245040000,-166.66,0.00013973,2]
[423573566,1780245040000,-432.905698,0.00013729,2]
[423573618,1780245040000,-150.0,0.00013987,2]
[423573555,1780245040000,-1590.0,0.0001372,2]
[423573572,1780245040000,-151.0,0.00013729,2]
[423573574,1780245040000,-151.0,0.00013729,2]
[423573558,1780245040000,-1273.0,0.00013729,2]
[423573562,1780245040000,-432.905698,0.00013729,2]
[423573564,1780245040000,-432.905698,0.00013729,2]
[423573576,1780245040000,-3639.0,0.00013729,2]
[423573578,1780245040000,-27050.56898778,0.00013743,2]
[423573620,1780245040000,-548.38063715,0.0001399,2]
[423573580,1780245040000,-500.0,0.00013786,2]
[423573594,1780245040000,-500.0,0.00013787,2]
[423573683,1780245040000,-27050.56898778,0.00014611,2]
[423573582,1780245040000,-1034.52,0.00013786,2]
[423573596,1780245040000,-500.0,0.00013787,2]
[423573584,1780245040000,-500.0,0.00013786,2]
[423573560,1780245040000,-1226.0,0.00013729,2]
[423573590,1780245040000,-500.0,0.00013787,2]
[423573600,1780245040000,-500.0,0.00013787,2]